Cogmind - Beta 14 @@@ ROGUE MODE // 2024.09.05 @ 12:58:34 Player: BoomBlip Result: Destroyed by D-53 Grenadier with Mini Grenade Launcher Performance ------------- Evolutions (2) 1000 Regions Visited (5) 1000 Robots Destroyed (80) 400 Value Destroyed (2372) 2372 Prototype IDs (3) 60 Alien Tech Used (0) 0 Bonus (307) 307 TOTAL SCORE: 5139 Bonus ------- High Alert Combat Kills 127 Follower Combat Kills 180 Cogmind --------- Core Integrity 0/550 Matter 318/400 Energy 280/280 System Corruption 2% Temperature Warm (110) Movement Core (500) Ox9 Location -8/Storage Parts ------- > --- POWER (1) -------- Heavy Ion Engine > --- PROPULSION (2) --- (None) > --- UTILITY (4) ------ Medium Storage Unit Medium Matter Pod > --- WEAPON (4) ------- Heavy Assault Rifle Enhanced Autogun Grenade Launcher > --- INVENTORY (10) --- Heavy Ion Engine Cooled Ion Engine Wheel Wheel Improved Sensor Array Melee Analysis Suite Light Armor Plating Light Assault Rifle Light Assault Rifle Gauss Rifle Peak State ------------ > --- POWER ------------ Cooled Ion Engine > --- PROPULSION ------- Wheel Wheel > --- UTILITY ---------- Medium Storage Unit Medium Matter Pod Improved Sensor Array Hardened Medium Armor Plating > --- WEAPON ----------- Heavy Assault Rifle Heavy Assault Rifle Autogun Gauss Rifle > --- INVENTORY -------- Heavy Ion Engine Cooled Ion Engine Cooled Ion Engine Wheel Compact Wheel Light Armor Plating Beam Rifle Light Assault Rifle Enhanced Autogun Grenade Launcher [Rating: 25] Favorites ----------- Power Cooled Ion Engine Engine Cooled Ion Engine Propulsion Wheel Treads Light Treads Leg Aluminum Leg Wheel Wheel Utility Medium Storage Unit Device Heat Sink Storage Medium Storage Unit Protection Light Armor Plating Weapon Light Assault Rifle Energy Gun Small Laser Ballistic Gun Light Assault Rifle Ballistic Cannon Improved Light Cannon Launcher Rocket Launcher Build | -11 -10 -9 -9 -8 -8 ------- Run | Yrd Mat Mat Min Mat Sto Slots Evolved 4 | . . 2 . 2 . Power . | . . . . . . Propulsion . | . . . . . . Utility 2 | . . . . 2 . Weapon 2 | . . 2 . . . Parts Attached 62 | 3 1 13 1 17 27 Power 7 | . . 3 . 1 3 Engine 7 | . . 3 . 1 3 Core . | . . . . . . Reactor . | . . . . . . Propulsion 15 | 2 . 4 . 5 4 Treads 3 | 2 . 1 . . . Leg . | . . . . . . Wheel 12 | . . 3 . 5 4 Hover . | . . . . . . Flight . | . . . . . . Utility 18 | . . 3 1 4 10 Device 3 | . . 1 . 1 1 Storage 3 | . . 1 . 2 . Processor . | . . . . . . Hackware . | . . . . . . Protection 12 | . . 1 1 1 9 Artifact . | . . . . . . Weapon 22 | 1 1 3 . 7 10 Energy Gun 1 | . . 1 . . . Energy Cannon . | . . . . . . Ballistic Gun 17 | 1 1 1 . 5 9 Ballistic Cannon 2 | . . 1 . 1 . Launcher 2 | . . . . 1 1 Special Weapon . | . . . . . . Impact Weapon . | . . . . . . Slashing Weapon . | . . . . . . Piercing Weapon . | . . . . . . Special Melee Weapon . | . . . . . . Unidentified Prototypes 3 | . . 1 . . 2 Parts Lost 30 | . . 1 1 15 13 Power 2 | . . 1 . 1 . Propulsion 7 | . . . . 5 2 Utility 10 | . . . 1 3 6 Weapon 11 | . . . . 6 5 Highest Loss Streak 12 | . . 1 1 12 5 To Critical Strikes . | . . . . . . Average Slot Usage (%) 90 | . 85 96 99 74 94 Engine 9 | . 14 11 11 8 8 Treads 4 | . 28 9 . . . Wheel 15 | . . 12 22 13 18 Device 2 | . . 4 . 3 . Storage 15 | . 14 11 11 16 18 Protection 9 | . . 3 10 5 14 Ballistic Gun 30 | . 28 33 33 22 33 Ballistic Cannon 3 | . . 8 11 3 . Peak Build Rating 25 | 6 6 13 13 17 25 Average Rating 15 | 6 5 10 12 13 21 On Entrance 9 | 6 6 6 13 13 15 Naked Turns . | . . . . . . Heaviest Build 44 | 13 13 29 29 35 44 Greatest Support 40 | 40 40 40 26 26 20 Greatest Overweight (x) 11 | . . 1 1 11 2 Average Overweight (x) . | . . . . 1 1 Largest Inventory Capacity 10 | 8 8 10 10 10 10 Average Capacity 9 | 8 8 9 10 10 10 Most Carried 10 | 6 8 10 10 10 10 Average Carried 8 | 6 7 8 10 6 9 Final Capacity 10 | 8 8 10 10 10 10 Final Carried 10 | 6 8 10 10 4 10 Class Distribution -------------------- 22% | Scavenger-Tank 20% | Tank 19% | Gunner 14% | Mutant 14% | Commander-Tank 4% | Scavenger-Mutant Dominant Class ---------------- Mutant | -10/Materials Gunner | -9/Materials Tank | -9/Mines Mutant | -8/Materials Scavenger-Tank | -8/Storage Resources | -11 -10 -9 -9 -8 -8 ----------- Run | Yrd Mat Mat Min Mat Sto Matter Collected 2725 | 230 34 488 323 522 1128 Remotely . | . . . . . . Salvage Created 3088 | . 52 468 222 933 1413 Parts 172 | . 5 28 8 51 80 Haulers Intercepted 7 | . . 1 . 1 5 Recyclers Shooed 2 | . . . . 2 . Parts Field Recycled . | . . . . . . Retrieved Matter . | . . . . . . Parts Self-Destructed . | . . . . . . Prevented . | . . . . . . Kills | -11 -10 -9 -9 -8 -8 ------- Run | Yrd Mat Mat Min Mat Sto Combat Hostiles Destroyed 56 | . 3 11 5 16 21 Guns 45 | . 3 9 2 11 20 Cannons 8 | . . 2 3 3 . AOE 3 | . . . . 2 1 Classes Destroyed 11 | . 1 5 1 2 2 Worker 6 | . . 2 . 1 3 Builder 6 | . . . . 3 3 Hauler 7 | . . 1 . 1 5 Recycler 5 | . . . 1 3 1 Swarmer 8 | . 3 . . 3 2 Grunt 30 | . . 9 5 8 8 Brawler 1 | . . 1 . . . Protector 1 | . . . . . 1 Sentry 10 | . . 1 . 1 8 Specialist 4 | . . . . 4 . Hunter 2 | . . . . . 2 Best Kill Streak 12 | . 3 4 3 12 8 Combat Bots Only 9 | . 3 4 3 9 3 Max Kills in Single Turn 4 | . 1 1 1 2 4 Gunslinging 1 | . . . . . 1 Exploded 1 | . . . . 1 1 Melee . | . . . . . . Uniques/NPCs Destroyed . | . . . . . . Combat | -11 -10 -9 -9 -8 -8 -------- Run | Yrd Mat Mat Min Mat Sto Hostile Shots Fired 363 | . 12 57 23 154 117 Missed 99 | . 3 19 3 45 29 Damage Taken 4189 | . 72 471 255 1470 1921 Core 715 | . 15 72 60 362 206 Absorbed by Shields 181 | . . . . 181 . Core Remaining (%) 87 | 100 94 . 67 . . Volleys Fired 201 | . 6 36 18 63 78 Largest 4 | . 2 4 4 4 4 Hottest 106 | . 40 99 99 99 106 Shots Fired 669 | . 12 144 72 161 280 Gun 595 | . 12 108 54 144 277 Cannon 67 | . . 36 18 13 . Launcher 7 | . . . . 4 3 Special . | . . . . . . Kinetic 662 | . 12 144 72 157 277 Thermal . | . . . . . . Explosive 7 | . . . . 4 3 Electromagnetic . | . . . . . . Robot Hit Streak 11 | . 3 9 11 9 7 Robot Miss Streak 6 | . 2 6 2 6 4 Penetration Max 1 | . . . . . 1 Secondary Targets 6 | . . . . 2 4 Max Gunslinging Chain 1 | . . . . 1 1 Shots Hit Robots 394 | . 5 73 52 114 150 Core Hits 176 | . 3 27 18 58 70 Critical Kills 2 | . . . . . 2 Critical Parts Destroyed 4 | . . . . . 4 Critical Strikes 9 | . . 1 1 . 7 Destroy 7 | . . . . . 7 Blast 2 | . . 1 1 . . Melee Attacks . | . . . . . . Impact . | . . . . . . Slashing . | . . . . . . Piercing . | . . . . . . Sneak Attacks . | . . . . . . Combat Hostiles . | . . . . . . Follow-up Attacks . | . . . . . . Damage Inflicted 6102 | . 58 833 611 1856 2744 Guns 4765 | . 58 598 357 1320 2432 Cannons 685 | . . 235 254 196 . Explosions 644 | . . . . 340 304 Melee . | . . . . . . Ramming 8 | . . . . . 8 Kinetic 5450 | . 58 833 611 1516 2432 Thermal . | . . . . . . Explosive 644 | . . . . 340 304 Electromagnetic . | . . . . . . Impact . | . . . . . . Slashing . | . . . . . . Piercing . | . . . . . . Highest Corruption 2 | . . . . . 2 Average Corruption 1 | . . . . . 1 Corruption Purged . | . . . . . . Corruption Blocked . | . . . . . . Overload Shots . | . . . . . . Overflow Damage . | . . . . . . Projectiles . | . . . . . . Explosions . | . . . . . . Melee . | . . . . . . Knockbacks 11 | . . 3 6 2 . Impact . | . . . . . . Kinetic 9 | . . 3 5 1 . Secondary 2 | . . . 1 1 . Self-Inflicted Damage 39 | . . . . 35 4 Shots 1 | . . . . 1 . Rammed 1 | . . . . . 1 Targets Rammed 1 | . . . . . 1 Kicked . | . . . . . . Crushed . | . . . . . . Highest Temperature 365 | . . 261 365 143 221 Average Temperature 71 | . . 91 128 49 53 Received Heat Transfer 1299 | . . 216 144 399 540 Effects 1 | . . 1 . . . Energy Bleed 1 | . . 1 . . . Siege Activations . | . . . . . . Robots Corrupted . | . . . . . . Combat Hostiles . | . . . . . . Parts Fried . | . . . . . . Impact Corruptions . | . . . . . . Robots Melted . | . . . . . . Combat Hostiles . | . . . . . . Parts Melted . | . . . . . . Heat Transferred . | . . . . . . Parts Sabotaged . | . . . . . . Parts Stolen . | . . . . . . Parts Stripped . | . . . . . . Power Chain Reactions . | . . . . . . Alert | -11 -10 -9 -9 -8 -8 ------- Run | Yrd Mat Mat Min Mat Sto Peak Influence 640 | . 115 313 238 519 640 Initial 149 | . . 48 78 92 149 Average 270 | . 47 143 161 314 383 Maximum Alert Level 2 | . . 1 1 2 2 Low Security (%) 44 | 100 100 78 68 27 17 Level 1 25 | . . 21 31 33 27 Level 2 30 | . . . . 38 54 Level 3 . | . . . . . . Level 4 . | . . . . . . Level 5 . | . . . . . . High Security . | . . . . . . Max Security . | . . . . . . Squads Dispatched 12 | . . 1 . 2 9 Investigation 1 | . . . . . 1 Extermination . | . . . . . . Reinforcement 6 | . . 1 . 2 3 Assault 2 | . . . . . 2 Garrison 3 | . . . . . 3 Intercept . | . . . . . . Searches Triggered . | . . . . . . Construction Impeded 1 | . . . . . 1 Haulers Reinforced . | . . . . . . Active Scanning Responses . | . . . . . . Cargo Convoy Interrupts . | . . . . . . Stealth | -11 -10 -9 -9 -8 -8 --------- Run | Yrd Mat Mat Min Mat Sto Distress Signals 4 | . 1 1 . 1 1 Communications Jammed . | . . . . . . Distress Signals . | . . . . . . Times Spotted 97 | . 7 20 6 29 35 Peak Tracking Total 9 | . 4 3 3 9 5 Tactical Retreats 7 | . 1 3 . 3 . Traps | -11 -10 -9 -9 -8 -8 ------- Run | Yrd Mat Mat Min Mat Sto Traps Triggered 7 | . 1 . . . 6 Indirectly . | . . . . . . Trap Hack Attempts . | . . . . . . Triggered . | . . . . . . Disarmed . | . . . . . . Reprogrammed . | . . . . . . Reused . | . . . . . . Traps Extracted . | . . . . . . Installed . | . . . . . . Triggered . | . . . . . . Machines | -11 -10 -9 -9 -8 -8 ---------- Run | Yrd Mat Mat Min Mat Sto Machines Disabled 10 | . . . 1 4 5 Max in Single Turn 1 | . . . 1 1 1 Machines Repaired . | . . . . . . Machines Dismantled . | . . . . . . Machines Sabotaged . | . . . . . . Overloaded Fab Kills . | . . . . . . Hacking | -11 -10 -9 -9 -8 -8 --------- Run | Yrd Mat Mat Min Mat Sto Machines Accessed 14 | . 2 2 . 2 8 Terminals 13 | . 2 2 . 2 7 Fabricators . | . . . . . . Repair Stations . | . . . . . . Recycling Units . | . . . . . . Scanalyzers . | . . . . . . Garrison Access 1 | . . . . . 1 Total Hacks 38 | . 4 7 . 5 22 Successful 17 | . 2 3 . 3 9 Failed 21 | . 2 4 . 2 13 Catastrophic 2 | . 1 . . . 1 Database Lockouts . | . . . . . . Manual 33 | . 4 7 . 4 18 Terminals 35 | . 4 7 . 5 19 Fabricators . | . . . . . . Repair Stations . | . . . . . . Recycling Units . | . . . . . . Scanalyzers . | . . . . . . Garrison Access 3 | . . . . . 3 Terminal Hacks 6 | . . . . 1 5 Open Door 2 | . . . . . 2 Alert Level 2 | . . . . 1 1 Unreport Threat 2 | . . . . . 2 Fabricator Hacks . | . . . . . . Repair Station Hacks . | . . . . . . Recycling Unit Hacks . | . . . . . . Scanalyzer . | . . . . . . Garrison Access Hacks . | . . . . . . Unauthorized Hacks 11 | . 2 3 . 2 4 Terminals 11 | . 2 3 . 2 4 Assimilate 2 | . 1 1 . . . Botnet 9 | . 1 2 . 2 4 Fabricators . | . . . . . . Repair Stations . | . . . . . . Recycling Units . | . . . . . . Scanalyzers . | . . . . . . Garrison Access . | . . . . . . Data Cores Recovered . | . . . . . . Used . | . . . . . . Hacking Detections 12 | . 2 1 . 2 7 Full Trace Events . | . . . . . . Feedback Events . | . . . . . . Feedback Blocked . | . . . . . . Robot Schematics Acquired . | . . . . . . Robots Built . | . . . . . . Authchips . | . . . . . . Time . | . . . . . . Total Robot Build Rating . | . . . . . . Part Schematics Acquired . | . . . . . . Parts Built . | . . . . . . Authchips . | . . . . . . Time . | . . . . . . Total Part Build Rating . | . . . . . . Parts Repaired . | . . . . . . Time . | . . . . . . Parts Recycled . | . . . . . . Recycled Matter . | . . . . . . Retrieved Matter . | . . . . . . Retrieved Components . | . . . . . . Parts Scanalyzed . | . . . . . . Part Schematics Acquired . | . . . . . . Parts Damaged . | . . . . . . Bothacking | -11 -10 -9 -9 -8 -8 ------------ Run | Yrd Mat Mat Min Mat Sto Used RIF Installer . | . . . . . . Robots Hacked . | . . . . . . Non-combat . | . . . . . . Combat . | . . . . . . Robot Hacks Applied . | . . . . . . Relay Couplers Released . | . . . . . . Fabnet Peak Effective % . | . . . . . . Robots Rewired . | . . . . . . Allies Hacked . | . . . . . . Hacks Repelled . | . . . . . . Allies | -11 -10 -9 -9 -8 -8 -------- Run | Yrd Mat Mat Min Mat Sto Total Allies 13 | . . . 1 . 12 Largest Group 11 | . . . 1 1 11 Highest-Rated Group 206 | . . . 31 31 206 Highest-Rated Ally 31 | . . . 31 31 31 Total Orders . | . . . . . . Ally Attacks 68 | . . . 1 . 67 Total Damage 805 | . . . 21 . 784 Kills 8 | . . . 1 . 7 Allies Corrupted . | . . . . . . Allies Melted . | . . . . . . Intel | -11 -10 -9 -9 -8 -8 ------- Run | Yrd Mat Mat Min Mat Sto Robot Analysis Total . | . . . . . . Derelict Logs Recovered 1 | . . . 1 . . Drone Launches . | . . . . . . Drone Recoveries . | . . . . . . Exploration | -11 -10 -9 -9 -8 -8 ------------- Run | Yrd Mat Mat Min Mat Sto Turns Passed 2477 | 17 176 519 261 459 1045 Spaces Moved 1462 | 9 98 283 196 197 679 Core 9 | . . . . 9 . Treads 231 | 7 98 126 . . . Legs 2 | 2 . . . . . Wheels 1220 | . . 157 196 188 679 Hover . | . . . . . . Flight . | . . . . . . Fastest Speed 90 | 120 160 90 90 90 95 Average Speed 113 | 151 160 125 104 124 99 Slowest Speed 600 | 160 160 160 105 600 110 Overloaded Moves . | . . . . . . Propulsion Burnouts . | . . . . . . Robots Hopped . | . . . . . . Cave-ins Triggered 1 | . . . . 1 . Exploration Rate (%) 32 | 2 26 27 42 21 74 Regions Visited 5 Branch Regions 2 Pre-discovered Areas . | . . . . . . Known Exits Taken . | . . . . . . Unknown Exits Taken 5 | 1 1 1 1 1 . Scrap Searched 1 | . . . 1 . . Spaces Dug . | . . . . . . Terrain Destroyed 39 | . . 2 2 16 19 Melee . | . . . . . . Projectile 5 | . . 2 2 . 1 AOE 34 | . . . . 16 18 Terrain Rammed . | . . . . . . Walls Destroyed . | . . . . . . Machines Disabled . | . . . . . . Actions | -11 -10 -9 -9 -8 -8 --------- Run | Yrd Mat Mat Min Mat Sto Total 1884 | 11 106 375 216 285 891 Wait 96 | . . 24 . 9 63 Move 1457 | 8 97 282 195 196 679 Hop . | . . . . . . Pick Up 32 | . 2 9 1 . 20 Fast Attach 23 | . 1 6 1 7 8 Attach 15 | . . 4 . 7 4 Detach . | . . . . . . Swap 24 | 3 . 3 . 3 15 Drop 34 | . . 11 1 . 22 Fire 201 | . 6 36 18 63 78 Melee . | . . . . . . Ram 1 | . . . . . 1 Kick . | . . . . . . Crush . | . . . . . . Escape Stasis . | . . . . . . Rewire 1 | . . . . . 1 Trap . | . . . . . . Miscellaneous . | . . . . . . Route ------- -11/Scrapyard -10/Materials -9/Materials -9/Mines -8/Materials -8/Storage History --------- Turn | Location | Event 1 | -11/Scrapyard | Discovered new exit (range 3) 18 | -11/Scrapyard | Entered Materials 186 | -10/Materials | Discovered new exit (range 5) 194 | -10/Materials | Entered another Materials area 194 | -9/Materials | Evolved 2 slots: Weapon x2 487 | -9/Materials | Build established: Gunner 677 | -9/Materials | Discovered new exit (range 15) 713 | -9/Materials | Entered Mines 716 | -9/Mines | Received a Mining Laser from a helpful Derelict 723 | -9/Mines | Met a Derelict bent on vengeance 863 | -9/Mines | Learned Materials garrison access intel 969 | -9/Mines | Discovered new exit (range 5) 974 | -9/Mines | Entered Materials 974 | -8/Materials | Accompanied by 1 ally 974 | -8/Materials | Evolved 2 slots: Utility x2 975 | -8/Materials | Loaded intel: 1 garrison access location 1092 | -8/Materials | Build established: Tank 1226 | -8/Materials | Crushed by falling debris 1237 | -8/Materials | Destroyed 9 combat bots 1254 | -8/Materials | Lost 12 parts (1p3n3u5w) 1298 | -8/Materials | Core integrity fell below 50% 1331 | -8/Materials | Lost 3 parts (2n1w) 1428 | -8/Materials | Discovered new exit (range 5) 1433 | -8/Materials | Entered Storage 1811 | -8/Storage | Build established: Scavenger-Tank 1998 | -8/Storage | Garrison activated, responded to threat 1999 | -8/Storage | Core integrity fell below 20% 2037 | -8/Storage | Assisted by bots powering up and referring to "LRC-V3" 2041 | -8/Storage | Lost 3 parts (2u1w) 2400 | -8/Storage | Met a pair of Derelict thieves 2427 | -8/Storage | Build established: Commander-Tank 2478 | -8/Storage | Destroyed by D-53 Grenadier with Mini Grenade Launcher Last Messages --------------- 02470_ Trooper 3e destroyed. 02470_ Q5-AMP(g) destroyed. 02470_ Slug penetrates G-50 Soldier. 02471_ The unstable cave ceiling collapses. 02472_ Lgt. Armor Plating destroyed. 02472_ Trooper 3a destroyed. 02473_ The unstable cave ceiling collapses. 02473_ Slug penetrates D-53 Grenadier. 02474_ U-05 Engineer lays Concrete. 02474_ AM-4FM(g) destroyed. 02474_ Wheel destroyed. 02475_ The unstable cave ceiling collapses. 02475_ U-05 Engineer lays Concrete. 02476_ I-25 Savior destroyed. 02476_ U-05 Engineer destroyed. 02476_ ALERT: Construction progress impeded, dispatching reinforcements to local area. 02477_ The unstable cave ceiling collapses. 02478_ Gauss Rifle destroyed. 02478_ Wheel destroyed. Map ----- +----------------------------------------------------+ | ?# #????????????????????????? | | ?# #????????????????????????? | | ?+ #????????????????????????? | | ?# #????????????????????????? | | ?# #????????????????????????? | | ?# #????????????????????????? | | ?# #????????????????????????? | | ?# #????????????????????????? | | ?# ##############???????????? | | ?# # #??????????? | | ?# # #??????????? | | ?# # """"" """"" #??????????? | | ?# / """"" """"" #??????????? | | ?#*%=# """"" """"" #########??? | | ## # ; ^^ ##?? | | ## #########+##### #?? | | ## ##??????# #### ##? | | #=* ######## b= = ## | | #=% * !%*d !! # # | | +!=T ! g!%d # | | #% ##### [ # | | #[! ########/####### = # | | # ####????# # | | # #???????# #? # b | | # #???????# "" " #### # | | # #???????# "[["" ## @ # | | # ##??????# "[*""" #### | | ########?"" **" #? | | %= #??""[["?## # | | +???"""" ### # | | ##### #??? ??##### #### | | #####???# #####+#####" "# #??? | | ##??????# #??? | | =#??????# #??? | | =#??????# ^ #??? | | #???####/#### #??? | | =#???# ##?## """"" #??? | | =#???# T#??# #??? | | ?#???##" "###?# #??? | | ?????# #?# ###### #??? | | ?????# !!#?# ##???# #??? | | ?????#!! !!#?# T#???# #??? | | ?????#! ! #?# ##???######??? | | ?????########?""""????????????? | | ??????????????????????????????? | | ??????????????????????????????? | | ??????????????????????????????? | | ??????????????????????????????? | | ??????????????????????????????? | | ??????????????????????????????? | +----------------------------------------------------+ Best States ------------- Heat Dissipation 38 Energy Generation 14 Energy Capacity 280 Matter Stores 450 Matter Capacity 450 Sight Range 16 Robot Scan Range 15 Terrain Scan Density 10 Armor Coverage 375 Evasion (%) 42 Recoil Reduction 2 Item Schematics ----------------- None Robot Schematics ------------------ None Fabricated ------------ Nothing Alien Tech Used ----------------- None Achievements -------------- None Challenges ------------ None Game ------ Seed TimingCobblerProjector Manual? 0 Play Time 00:32:21 Cumulative 109.3 hours Start 2024.09.05 @ 11:44:38 End 2024.09.05 @ 12:58:34 Sessions 1 Manual Loads 0 Difficulty Rogue Special Mode None Game No. 162 Rogue 150 Adventurer 10 Explorer 2 Win Type - Total 1 Types 1/0/0/0/0/0/0/0/0 Lore% 19 Gallery% 54 Achievement% 42 Wizard Run 0 Options --------- Layout 0 ASCII 0 Keyboard 0 Movement Arrows Keybinds 0 Fullscreen 1 Font 36/Smallcaps Map View 76x50 Zoom Use 0% Tactical HUD 1 Map Filters NONE Filters NONE Steam 1 RUN: 9d7531db-3c81-4ed6-9273-eec05214d498